fUST/lending_fUST_20250609
["ID","MTS","AMOUNT","RATE_DAILY","PERIOD"]
[365114529,1749471049079,-816.4155173,0.00023969,10]
[365114530,1749471049088,-1000.0,0.00023999,12]
[365114531,1749471049098,-1000.0,0.00023999,19]
[365114532,1749471049108,-6855.07790806,0.00024,2]
[365114533,1749471049118,-23982.97834317,0.00024,2]
[365114534,1749471049127,-667642.05088063,0.00024,2]
[365114535,1749471049141,-28024.41597918,0.00024,2]
[365114536,1749471049153,-3010.88555315,0.00024,2]
[365114537,1749471049356,-430.0,0.00021917,4]
[365114538,1749471049445,-10.0,0.00021917,4]
[365114539,1749471049459,-274.78016519,0.00021917,4]
[365114540,1749471049470,-165.21983481,0.00021917,4]
[365114541,1749471049480,-376.43016519,0.00021917,4]
[365114542,1749471049491,-63.56983481,0.00021917,4]
[365114543,1749471049502,-420.0,0.00021917,4]
[365114544,1749471049512,-420.0,0.00021917,4]
[365114545,1749471049521,-421.28892235,0.00021917,4]
[365114546,1749471049533,-420.0,0.00021917,4]
[365114547,1749471049543,-160.0,0.00021972,2]
[365114548,1749471049553,-440.0,0.00022191,4]
[365114549,1749471049563,-440.0,0.00022191,4]
[365114550,1749471049573,-440.0,0.00022465,4]
[365114551,1749471049583,-440.0,0.00022739,4]
[365114552,1749471049593,-440.0,0.00023013,4]
[365114553,1749471049603,-405.0,0.00023138,2]
[365114554,1749471049612,-440.0,0.00023287,4]
[365114555,1749471049622,-440.0,0.00023561,4]
[365114556,1749471049633,-440.0,0.00023835,4]
[365114557,1749471049643,-80224.8029778,0.00024,2]
[365114560,1749471098056,3000.0,0.000244,120]
[365114629,1749471668682,500.0,0.0002465,120]
[365114632,1749471676159,163.239598,0.00013699,2]
[365114694,1749472237244,-586.52,0.0002034,2]
[365114695,1749472237253,-217.356711,0.00020526,2]
[365114696,1749472237261,-1530.61641352,0.00020601,2]
[365114830,1749472238351,-700.406299,0.00020409,2]
[365114832,1749472238361,-372.59347408,0.00020601,2]
[365114834,1749472238370,-173.1973884,0.00020666,2]
[365114836,1749472238380,-2010.5258676,0.00020895,2]
[365114838,1749472238389,-300.0,0.00020902,2]
[365114840,1749472238399,-300.0,0.00020902,2]
[365114842,1749472238408,-21894.7340417,0.00020903,2]
[365114844,1749472238418,-200.0,0.0002134,2]
[365114846,1749472238427,-180.51156662,0.00021807,2]
[365114848,1749472238436,-160.0,0.00021864,2]
[365114850,1749472238446,-904.15789819,0.000219,6]
[365114852,1749472238455,-181.87007569,0.000219,2]
[365114854,1749472238465,-773.58,0.00021907,3]
[365114856,1749472238474,-11856.04170836,0.00021913,2]
[365114858,1749472238483,-160.0,0.00021913,2]
[365114860,1749472238494,-842.5625,0.00021913,2]
[365114862,1749472238503,-160.0,0.00021913,2]
[365114864,1749472238512,-213.08899333,0.00021913,2]
[365114866,1749472238522,-834.7738823,0.00021913,2]
[365114868,1749472238531,-160.0,0.00021913,2]
[365114870,1749472238541,-160.0,0.00021913,2]
[365114872,1749472238550,-160.0,0.00021913,2]
[365114874,1749472238559,-500.0,0.00021916,2]
[365114876,1749472238569,-521.64459455,0.00021916,2]
[365114878,1749472238578,-500.0,0.00021916,2]
[365114880,1749472238588,-500.0,0.00021916,2]
[365114882,1749472238598,-446.46973033,0.00021916,2]
[365114885,1749472238607,-485.25562801,0.00021916,2]
[365114887,1749472238616,-160.71885892,0.00021916,2]
[365114889,1749472238626,-203.95,0.00021916,2]
[365114891,1749472238635,-430.0,0.00021917,4]
[365114893,1749472238646,-440.0,0.00021917,4]
[365114895,1749472238655,-440.0,0.00021917,4]
[365114897,1749472238664,-431.68950031,0.00021917,4]
[365114899,1749472238673,-440.0,0.00021917,4]
[365114901,1749472238683,-440.0,0.00021917,4]
[365114903,1749472238692,-440.0,0.00021917,4]
[365114905,1749472238701,-440.0,0.00021917,4]
[365114907,1749472238710,-440.0,0.00021917,4]
[365114909,1749472238720,-440.0,0.00021917,4]
[365114911,1749472238730,-440.0,0.00021917,4]
[365114913,1749472238739,-440.0,0.00021917,4]
[365114915,1749472238749,-440.0,0.00021917,4]
[365114917,1749472238759,-440.0,0.00021917,4]
[365114919,1749472238770,-440.0,0.00021917,4]
[365114921,1749472238780,-223.71778218,0.00021917,4]
[365114923,1749472238790,-431.1523617,0.00021917,4]
[365114925,1749472238799,-440.0,0.00021917,4]
[365114927,1749472238808,-440.0,0.00021917,4]
[365114929,1749472238817,-440.0,0.00021917,4]
[365114931,1749472238827,-440.0,0.00021917,4]
[365114933,1749472238836,-354.25513656,0.00021917,4]
[365114935,1749472238846,-440.0,0.00021917,4]
[365114937,1749472238855,-440.0,0.00021917,4]
[365114939,1749472238867,-440.0,0.00021917,4]
[365114942,1749472238877,-440.0,0.00021917,4]
[365114944,1749472238886,-440.0,0.00021917,4]
[365114946,1749472238896,-440.0,0.00021917,4]
[365114947,1749472238905,-440.0,0.00021917,4]
[365114949,1749472238915,-295.48207929,0.00021917,4]
[365114951,1749472238924,-440.0,0.00021917,4]
[365114954,1749472238935,-430.0,0.00021917,4]
[365114955,1749472238944,-440.0,0.00021917,4]
[365114957,1749472238954,-430.0,0.00021917,4]
[365114960,1749472238964,-440.0,0.00021917,4]
[365114961,1749472238973,-173.65366645,0.00021917,4]
[365114963,1749472238982,-440.0,0.00021917,4]
[365114965,1749472238991,-440.0,0.00021917,4]
[365114967,1749472239000,-440.0,0.00021917,4]
[365114969,1749472239010,-440.0,0.00021917,4]
[365114971,1749472239019,-440.0,0.00021917,4]
[365114973,1749472239029,-440.0,0.00021917,4]
[365114975,1749472239038,-437.11489043,0.00021917,4]
[365114977,1749472239046,-271.71426457,0.00021917,4]
[365114979,1749472239056,-440.0,0.00021917,4]
[365114981,1749472239066,-440.0,0.00021917,4]
[365114983,1749472239076,-440.0,0.00021917,4]
[365114986,1749472239085,-440.0,0.00021917,4]
[365114988,1749472239095,-440.0,0.00021917,4]
[365114990,1749472239104,-430.0,0.00021917,4]
[365114992,1749472239114,-440.0,0.00021917,4]
[365114994,1749472239123,-440.84975458,0.00021917,4]
[365114996,1749472239133,-440.0,0.00021917,4]
[365114997,1749472239142,-440.0,0.00021917,4]
[365115000,1749472239153,-440.0,0.00021917,4]
[365115002,1749472239163,-431.05433408,0.00021917,4]
[365115003,1749472239172,-440.0,0.00021917,4]
[365115005,1749472239181,-440.0,0.00021917,4]
[365115007,1749472239190,-440.0,0.00021917,4]
[365115010,1749472239200,-430.0,0.00021917,4]
[365115012,1749472239209,-430.0,0.00021917,4]
[365115014,1749472239218,-433.59657547,0.00021917,4]
[365115015,1749472239228,-446.41072766,0.00021917,4]
[365115016,1749472239237,-440.0,0.00021917,4]
[365115018,1749472239247,-440.0,0.00021917,4]
[365115019,1749472239257,-430.0,0.00021917,4]
[365115021,1749472239267,-440.0,0.00021917,4]
[365115022,1749472239276,-454.96358829,0.00021917,4]
[365115023,1749472239285,-440.0,0.00021917,4]
[365115024,1749472239296,-440.0,0.00021917,4]
[365115025,1749472239306,-440.0,0.00021917,4]
[365115026,1749472239316,-440.0,0.00021917,4]
[365115027,1749472239326,-443.04863108,0.00021917,4]
[365115028,1749472239335,-440.0,0.00021917,4]
[365115029,1749472239345,-440.0,0.00021917,4]
[365115030,1749472239355,-440.0,0.00021917,4]
[365115031,1749472239364,-440.0,0.00021917,4]
[365115032,1749472239374,-440.0,0.00021917,4]
[365115033,1749472239384,-440.0,0.00021917,4]
[365115034,1749472239394,-410.82373277,0.00021917,4]
[365115035,1749472239404,-440.0,0.00021917,4]
[365115036,1749472239414,-440.0,0.00021917,4]
[365115037,1749472239424,-420.0,0.00021917,4]
[365115038,1749472239435,-440.0,0.00021917,4]
[365115039,1749472239444,-509.21437107,0.00021917,4]
[365115040,1749472239454,-430.51694996,0.00021917,4]
[365115041,1749472239463,-500.0,0.00021917,4]
[365115042,1749472239473,-440.0,0.00021917,4]
[365115043,1749472239483,-440.0,0.00021917,4]
[365115044,1749472239491,-440.0,0.00021917,4]
[365115045,1749472239501,-440.0,0.00021917,4]
[365115046,1749472239510,-440.0,0.00021917,4]
[365115047,1749472239519,-440.0,0.00021917,4]
[365115048,1749472239528,-400.74742679,0.00021917,4]
[365115049,1749472239537,-440.0,0.00021917,4]
[365115050,1749472239546,-440.0,0.00021917,4]
[365115051,1749472239555,-389.01144997,0.00021917,4]
[365115052,1749472239564,-492.02168635,0.00021917,4]
[365115053,1749472239573,-440.0,0.00021917,4]
[365115054,1749472239583,-285.59405925,0.00021917,4]
[365115055,1749472239592,-400.0,0.00021917,4]
[365115056,1749472239601,-440.0,0.00021917,4]
[365115057,1749472239610,-400.92573595,0.00021917,4]
[365115058,1749472239619,-440.0,0.00021917,4]
[365115059,1749472239629,-157.75692255,0.00021917,4]
[365115060,1749472239638,-440.0,0.00021917,4]
[365115061,1749472239648,-440.0,0.00021917,4]
[365115062,1749472239657,-401.77808143,0.00021917,4]
[365115063,1749472239667,-430.0,0.00021917,4]
[365115064,1749472239677,-440.0,0.00021917,4]
[365115065,1749472239686,-440.0,0.00021917,4]
[365115066,1749472239695,-440.0,0.00021917,4]
[365115067,1749472239704,-430.60305805,0.00021917,4]
[365115068,1749472239713,-440.0,0.00021917,4]
[365115069,1749472239722,-440.0,0.00021917,4]
[365115070,1749472239741,-440.0,0.00021917,4]
[365115071,1749472239751,-500.0,0.00021917,4]
[365115072,1749472239761,-227.42402223,0.00021917,4]
[365115073,1749472239771,-430.0,0.00021917,4]
[365115074,1749472239781,-440.0,0.00021917,4]
[365115075,1749472239790,-440.0,0.00021917,4]
[365115076,1749472239800,-440.0,0.00021917,4]
[365115077,1749472239809,-440.0,0.00021917,4]
[365115078,1749472239819,-440.0,0.00021917,4]
[365115079,1749472239829,-440.0,0.00021917,4]
[365115080,1749472239838,-440.0,0.00021917,4]
[365115081,1749472239848,-431.55264364,0.00021917,4]
[365115082,1749472239858,-440.0,0.00021917,4]
[365115084,1749472239870,-300.0,0.00021917,4]
[365115085,1749472239880,-430.0,0.00021917,4]
[365115086,1749472239890,-440.0,0.00021917,4]
[365115087,1749472239899,-440.0,0.00021917,4]
[365115088,1749472239909,-152.97089213,0.00021917,4]
[365115089,1749472239920,-432.80066593,0.00021917,4]
[365115090,1749472239930,-440.0,0.00021917,4]
[365115091,1749472239941,-581.39860187,0.00021917,4]
[365115092,1749472239951,-440.0,0.00021917,4]
[365115093,1749472239960,-431.61695649,0.00021917,4]
[365115094,1749472239970,-440.0,0.00021917,4]
[365115095,1749472239980,-440.0,0.00021917,4]
[365115096,1749472239989,-440.0,0.00021917,4]
[365115097,1749472239998,-440.0,0.00021917,4]
[365115098,1749472240008,-440.0,0.00021917,4]
[365115099,1749472240018,-433.91234916,0.00021917,4]
[365115100,1749472240029,-440.0,0.00021917,4]
[365115101,1749472240039,-453.26562255,0.00021917,4]
[365115102,1749472240048,-440.0,0.00021917,4]
[365115103,1749472240058,-434.75101122,0.00021917,4]
[365115104,1749472240068,-440.0,0.00021917,4]
[365115105,1749472240079,-400.0,0.00021917,4]
[365115106,1749472240089,-500.0,0.00021917,4]
[365115107,1749472240099,-500.0,0.00021917,4]
[365115108,1749472240109,-500.0,0.00021917,4]
[365115109,1749472240119,-500.0,0.00021917,4]
[365115110,1749472240129,-500.0,0.00021917,4]
[365115111,1749472240139,-500.0,0.00021917,4]
[365115112,1749472240149,-432.60842759,0.00021917,4]
[365115113,1749472240158,-440.0,0.00021917,4]
[365115114,1749472240168,-440.0,0.00021917,4]
[365115115,1749472240178,-440.0,0.00021917,4]
[365115116,1749472240187,-500.0,0.00021917,4]
[365115117,1749472240197,-500.0,0.00021917,4]
[365115118,1749472240207,-500.0,0.00021917,4]
[365115119,1749472240350,-387.66147122,0.00021917,4]
[365115120,1749472240363,-440.0,0.00021917,4]
[365115121,1749472240373,-440.0,0.00021917,4]
[365115122,1749472240383,-422.70486328,0.00021917,4]
[365115123,1749472240393,-346.62810943,0.00021917,4]
[365115124,1749472240404,-440.0,0.00021917,2]
[365115125,1749472240413,-440.0,0.00021917,4]
[365115126,1749472240423,-440.0,0.00021917,4]
[365115127,1749472240433,-189.31904658,0.00021917,4]
[365115128,1749472240443,-440.0,0.00021917,4]
[365115129,1749472240453,-440.0,0.00021917,4]
[365115130,1749472240463,-440.0,0.00021917,4]
[365115131,1749472240472,-440.0,0.00021917,4]
[365115132,1749472240482,-440.0,0.00021917,4]
[365115133,1749472240493,-440.0,0.00021917,4]
[365115134,1749472240506,-440.0,0.00021917,4]
[365115135,1749472240518,-151.19199093,0.00021917,4]
[365115136,1749472240527,-430.0,0.00021917,4]
[365115137,1749472240537,-430.0,0.00021917,4]
[365115138,1749472240548,-508.02289884,0.00021917,4]
[365115139,1749472240557,-436.61590364,0.00021917,4]
[365115140,1749472240567,-232.84439423,0.00021917,4]
[365115141,1749472240576,-440.0,0.00021917,4]
[365115142,1749472240586,-395.54537874,0.00021917,4]
[365115143,1749472240595,-437.09428049,0.00021917,4]
[365115144,1749472240605,-430.67710524,0.00021917,4]
[365115145,1749472240614,-440.0,0.00021917,4]
[365115146,1749472240624,-410.0,0.00021917,4]
[365115147,1749472240634,-430.0,0.00021917,4]
[365115148,1749472240643,-430.0,0.00021917,4]
[365115149,1749472240653,-431.89094193,0.00021917,4]
[365115150,1749472240663,-440.0,0.00021917,4]
[365115151,1749472240674,-440.0,0.00021917,4]
[365115152,1749472240684,-440.0,0.00021917,4]
[365115153,1749472240693,-440.0,0.00021917,4]
[365115154,1749472240703,-430.0,0.00021917,4]
[365115155,1749472240712,-420.0,0.00021917,4]
[365115156,1749472240722,-500.0,0.00021917,4]
[365115157,1749472240732,-420.0,0.00021917,4]
[365115158,1749472240741,-186.7641323,0.00021917,4]
[365115159,1749472240751,-430.0,0.00021917,4]
[365115160,1749472240760,-420.0,0.00021917,4]
[365115161,1749472240770,-420.0,0.00021917,4]
[365115162,1749472240780,-440.0,0.00021917,4]
[365115164,1749472240789,-167.64032633,0.00021917,4]
[365115165,1749472240799,-458.92974755,0.00021917,4]
[365115166,1749472240808,-440.0,0.00021917,4]
[365115167,1749472240817,-441.01894852,0.00021917,4]
[365115168,1749472240827,-432.19609612,0.00021917,4]
[365115169,1749472240837,-440.0,0.00021917,4]
[365115170,1749472240847,-440.0,0.00021917,4]
[365115171,1749472240857,-430.0,0.00021917,4]
[365115172,1749472240869,-440.0,0.00021917,4]
[365115173,1749472240880,-420.0,0.00021917,4]
[365115175,1749472240889,-430.0,0.00021917,4]
[365115177,1749472240899,-440.0,0.00021917,4]
[365115179,1749472240908,-430.0,0.00021917,4]
[365115180,1749472240917,-440.0,0.00021917,4]
[365115182,1749472240927,-440.0,0.00021917,4]
[365115183,1749472240936,-440.0,0.00021917,4]
[365115184,1749472240946,-430.0,0.00021917,4]
[365115185,1749472240956,-1871.23,0.00021917,4]
[365115186,1749472240966,-431.00501394,0.00021917,4]
[365115188,1749472240976,-430.0,0.00021917,4]
[365115190,1749472240985,-430.0,0.00021917,4]
[365115191,1749472240994,-2121.79,0.00021917,4]
[365115192,1749472241004,-440.0,0.00021917,4]
[365115193,1749472241014,-164.13513398,0.00021917,4]
[365115194,1749472241024,-430.0,0.00021917,4]
[365115195,1749472241034,-440.0,0.00021917,4]
[365115196,1749472241044,-1588.35,0.00021917,4]
[365115197,1749472241054,-440.0,0.00021917,4]
[365115198,1749472241063,-2343.66,0.00021917,4]
[365115199,1749472241072,-440.0,0.00021917,4]
[365115200,1749472241082,-430.0,0.00021917,4]
[365115201,1749472241091,-217.4782507,0.00021917,4]
[365115202,1749472241100,-500.0,0.00021917,4]
[365115203,1749472241109,-500.0,0.00021917,4]
[365115204,1749472241119,-580.28,0.00021917,4]
[365115205,1749472241128,-440.0,0.00021917,4]
[365115206,1749472241139,-1853.64,0.00021917,4]
[365115207,1749472241149,-440.0,0.00021917,4]
[365115208,1749472241159,-440.0,0.00021917,4]
[365115209,1749472241169,-578.87,0.00021917,4]
[365115210,1749472241178,-440.0,0.00021917,4]
[365115211,1749472241188,-440.0,0.00021917,4]
[365115212,1749472241198,-430.0,0.00021917,4]
[365115213,1749472241207,-1898.46,0.00021917,4]
[365115214,1749472241216,-430.0,0.00021917,4]
[365115215,1749472241225,-440.0,0.00021917,4]
[365115216,1749472241235,-440.0,0.00021917,4]
[365115217,1749472241244,-440.0,0.00021917,4]
[365115218,1749472241253,-440.0,0.00021917,4]
[365115219,1749472241263,-499.92,0.00021917,4]
[365115220,1749472241272,-307.65218454,0.00021917,4]
[365115221,1749472241282,-440.0,0.00021917,4]
[365115222,1749472241291,-1022.06,0.00021917,4]
[365115223,1749472241301,-440.0,0.00021917,4]
[365115224,1749472241310,-440.0,0.00021917,4]
[365115225,1749472241320,-500.0,0.00021917,4]
[365115226,1749472241330,-626.4789578,0.00021917,4]
[365115227,1749472241339,-574.51,0.00021917,4]
[365115228,1749472241349,-400.0,0.00021917,4]
[365115229,1749472241358,-440.0,0.00021917,4]
[365115230,1749472241368,-440.0,0.00021917,4]
[365115231,1749472241378,-938.59,0.00021917,4]
[365115232,1749472241387,-440.0,0.00021917,4]
[365115233,1749472241397,-440.0,0.00021917,4]
[365115234,1749472241406,-440.0,0.00021917,4]
[365115235,1749472241416,-420.0,0.00021917,4]
[365115236,1749472241426,-440.0,0.00021917,4]
[365115237,1749472241436,-472.9,0.00021917,4]
[365115238,1749472241445,-440.0,0.00021917,4]
[365115239,1749472241459,-440.0,0.00021917,4]
[365115240,1749472241473,-440.0,0.00021917,4]
[365115241,1749472241487,-440.0,0.00021917,4]
[365115242,1749472241501,-440.0,0.00021917,4]
[365115243,1749472241513,-1098.78,0.00021917,4]
[365115244,1749472241524,-440.0,0.00021917,4]
[365115245,1749472241535,-1164.01,0.00021917,4]
[365115246,1749472241548,-720.23,0.00021917,4]
[365115247,1749472241560,-463.21,0.00021917,4]
[365115248,1749472241573,-440.0,0.00021917,4]
[365115249,1749472241584,-440.0,0.00021917,4]
[365115250,1749472241597,-430.0,0.00021917,4]
[365115251,1749472241609,-410.0,0.00021917,4]
[365115252,1749472241622,-3419.96,0.00021917,4]
[365115253,1749472241635,-440.0,0.00021917,4]
[365115254,1749472241646,-849.05,0.00021917,4]
[365115255,1749472241659,-440.0,0.00021917,4]
[365115256,1749472241672,-440.0,0.00021917,4]
[365115257,1749472241683,-440.0,0.00021917,4]
[365115258,1749472241695,-440.0,0.00021917,4]
[365115259,1749472241707,-440.0,0.00021917,4]
[365115260,1749472241719,-756.07,0.00021917,4]
[365115261,1749472241731,-440.0,0.00021917,4]
[365115262,1749472241744,-430.0,0.00021917,4]
[365115263,1749472241756,-440.0,0.00021917,4]
[365115264,1749472241768,-440.0,0.00021917,4]
[365115265,1749472241779,-440.0,0.00021917,4]
[365115266,1749472241790,-440.0,0.00021917,4]
[365115267,1749472241800,-440.0,0.00021917,4]
[365115268,1749472241812,-440.0,0.00021917,4]
[365115269,1749472241823,-440.0,0.00021917,4]
[365115270,1749472241835,-1560.73,0.00021917,4]
[365115271,1749472241847,-440.0,0.00021917,4]
[365115272,1749472241859,-961.23,0.00021917,4]
[365115273,1749472241873,-449.28771871,0.00021917,4]
[365115274,1749472241883,-440.0,0.00021917,4]
[365115275,1749472241896,-1553.26,0.00021917,4]
[365115276,1749472241909,-440.0,0.00021917,4]
[365115277,1749472241922,-430.0,0.00021917,4]
[365115278,1749472241935,-440.0,0.00021917,4]
[365115279,1749472241948,-440.0,0.00021917,2]
[365115280,1749472241958,-418.54585155,0.00021917,4]
[365115281,1749472241969,-440.0,0.00021917,4]
[365115282,1749472241979,-430.0,0.00021917,4]
[365115283,1749472241990,-152.17660969,0.00021944,2]
[365115284,1749472242001,-209.3546536,0.00021944,2]
[365115285,1749472242013,-500.0,0.00021973,2]
[365115286,1749472242026,-500.0,0.00021973,2]
[365115287,1749472242038,-258.45866651,0.00021973,2]
[365115288,1749472242048,-3336.0,0.00022,10]
[365115289,1749472242057,-57463.05665493,0.00022,2]
[365115290,1749472242067,-160.76859129,0.00022,2]
[365115291,1749472242078,-904.15789809,0.00022003,6]
[365115292,1749472242089,-1021.26527396,0.00022091,2]
[365115293,1749472242100,-904.15789809,0.00022107,6]
[365115294,1749472242110,-500.0,0.00022119,2]
[365115295,1749472242120,-500.0,0.00022119,2]
[365115296,1749472242130,-229.64266968,0.00022139,2]
[365115297,1749472242140,-424.05420114,0.00022139,2]
[365115298,1749472242152,-160.0,0.00022139,2]
[365115299,1749472242163,-1173.04,0.00022189,2]
[365115300,1749472242174,-500.0,0.0002219,2]
[365115301,1749472242187,-522.9,0.0002219,2]
[365115302,1749472242198,-1000.0,0.0002219,30]
[365115303,1749472242210,-1000.0,0.0002219,30]
[365115304,1749472242220,-1000.0,0.0002219,30]
[365115305,1749472242232,-1000.0,0.0002219,30]
[365115306,1749472242244,-1000.0,0.0002219,30]
[365115307,1749472242255,-1000.0,0.0002219,30]
[365115308,1749472242266,-1000.0,0.0002219,30]
[365115309,1749472242278,-1000.0,0.0002219,30]
[365115310,1749472242289,-1000.0,0.0002219,30]
[365115311,1749472242301,-1000.0,0.0002219,30]
[365115312,1749472242312,-1000.0,0.0002219,30]
[365115313,1749472242323,-1000.0,0.0002219,30]
[365115314,1749472242335,-1000.0,0.0002219,30]
[365115315,1749472242347,-1000.0,0.0002219,30]
[365115316,1749472242359,-1000.0,0.0002219,30]
[365115317,1749472242369,-1000.0,0.0002219,30]
[365115318,1749472242380,-1000.0,0.0002219,30]
[365115319,1749472242391,-704.87543676,0.0002219,30]
[365115320,1749472242403,-500.0,0.0002219,4]
[365115321,1749472242414,-500.0,0.0002219,4]
[365115322,1749472242426,-160.0,0.0002219,2]
[365115323,1749472242437,-315.14996555,0.0002219,30]
[365115324,1749472242448,-11856.04170836,0.0002219,30]
[365115325,1749472242460,-500.0,0.0002219,2]
[365115326,1749472242470,-500.0,0.0002219,2]
[365115327,1749472242481,-500.0,0.0002219,2]
[365115328,1749472242492,-500.0,0.0002219,2]
[365115329,1749472242503,-500.0,0.0002219,2]
[365115330,1749472242514,-500.0,0.0002219,2]
[365115331,1749472242525,-500.0,0.0002219,2]
[365115332,1749472242536,-500.0,0.0002219,2]
[365115333,1749472242548,-291.9930506,0.0002219,2]
[365115334,1749472242559,-500.0,0.0002219,2]
[365115335,1749472242570,-500.0,0.0002219,2]
[365115336,1749472242581,-514.02414018,0.0002219,2]
[365115337,1749472242592,-470.5327903,0.00022191,4]
[365115338,1749472242603,-440.0,0.00022191,4]
[365115339,1749472242614,-440.0,0.00022191,4]
[365115340,1749472242626,-334.47404073,0.00022191,4]
[365115341,1749472242639,-421.94888769,0.00022191,4]
[365115342,1749472242651,-440.0,0.00022191,4]
[365115343,1749472242662,-440.0,0.00022191,4]
[365115344,1749472242672,-440.0,0.00022191,4]
[365115345,1749472242683,-530.0,0.00022191,4]
[365115346,1749472242694,-440.0,0.00022191,4]
[365115347,1749472242705,-440.0,0.00022191,4]
[365115348,1749472242716,-440.0,0.00022191,4]
[365115349,1749472242726,-400.78212784,0.00022191,4]
[365115350,1749472242737,-440.0,0.00022191,4]
[365115351,1749472242747,-353.43177733,0.00022191,4]
[365115352,1749472242758,-411.12636405,0.00022191,4]
[365115353,1749472242769,-440.0,0.00022191,4]
[365115354,1749472242779,-432.50110164,0.00022191,4]
[365115358,1749472242791,-440.0,0.00022191,4]
[365115359,1749472242948,-440.0,0.00022191,4]
[365115360,1749472242958,-440.0,0.00022191,4]
[365115361,1749472242968,-440.0,0.00022191,4]
[365115362,1749472242977,-440.0,0.00022191,4]
[365115363,1749472242985,-440.0,0.00022191,4]
[365115364,1749472242993,-487.63070471,0.00022191,4]
[365115366,1749472243003,-440.0,0.00022191,4]
[365115367,1749472243012,-440.0,0.00022191,4]
[365115368,1749472243020,-440.0,0.00022191,2]
[365115369,1749472243029,-440.0,0.00022191,4]
[365115370,1749472243038,-420.7582188,0.00022191,4]
[365115371,1749472243046,-440.0,0.00022191,4]
[365115372,1749472243056,-543.54597485,0.00022191,4]
[365115374,1749472243065,-430.0,0.00022191,4]
[365115375,1749472243074,-440.0,0.00022191,4]
[365115376,1749472243083,-440.0,0.00022191,4]
[365115377,1749472243091,-440.0,0.00022191,4]
[365115378,1749472243100,-440.0,0.00022191,4]
[365115379,1749472243109,-440.0,0.00022191,4]
[365115380,1749472243118,-440.0,0.00022191,4]
[365115381,1749472243126,-1871.23,0.00022191,4]
[365115382,1749472243135,-2121.79,0.00022191,4]
[365115383,1749472243143,-440.0,0.00022191,4]
[365115385,1749472243152,-1588.35,0.00022191,4]
[365115386,1749472243161,-440.0,0.00022191,4]
[365115387,1749472243170,-2343.66,0.00022191,4]
[365115389,1749472243179,-440.0,0.00022191,4]
[365115390,1749472243187,-440.0,0.00022191,4]
[365115391,1749472243195,-1853.64,0.00022191,4]
[365115392,1749472243202,-440.0,0.00022191,4]
[365115393,1749472243210,-578.87,0.00022191,4]
[365115394,1749472243218,-577.98075775,0.00022191,4]
[365115395,1749472243227,-440.0,0.00022191,4]
[365115396,1749472243236,-1898.46,0.00022191,4]
[365115397,1749472243245,-164.84601593,0.00022191,4]
[365115398,1749472243252,-440.0,0.00022191,4]
[365115399,1749472243259,-499.92,0.00022191,4]
[365115400,1749472243267,-440.0,0.00022191,4]
[365115401,1749472243276,-1022.06,0.00022191,4]
[365115402,1749472243284,-440.0,0.00022191,4]
[365115403,1749472243292,-440.0,0.00022191,4]
[365115404,1749472243300,-574.51,0.00022191,4]